Cogmind - Beta 13 X1 @@@ ROGUE MODE // 2023.09.24 @ 11:25:56 Player: Plexion Result: Destroyed by as-03914 with Assembled Heavy Rifle Performance ------------- Evolutions (0) 0 Regions Visited (4) 800 Robots Destroyed (12) 60 Value Destroyed (299) 299 Prototype IDs (23) 460 Alien Tech Used (0) 0 Bonus (300) 300 TOTAL SCORE: 1919 Bonus ------- Aligned with FarCom 300 Cogmind --------- Core Integrity 0/250 Matter 182/300 Energy 31/100 System Corruption 14% Temperature Cool (44) Movement Core (750) Ox14 Location -9/Mines Parts ------- > --- POWER (1) -------- (None) > --- PROPULSION (2) --- (None) > --- UTILITY (2) ------ High-capacity Storage Unit 0b10 Alert Chip > --- WEAPON (2) ------- Medium Laser Beam Cannon > --- INVENTORY (20) --- Aluminum Leg Large Matter Pod (150) Medium Laser Light Cannon Katana Peak State ------------ > --- POWER ------------ Ion Engine > --- PROPULSION ------- Wheel > --- UTILITY ---------- High-capacity Storage Unit 0b10 Alert Chip > --- WEAPON ----------- (None) > --- INVENTORY -------- Aluminum Leg Large Matter Pod Medium Laser Medium Laser Beam Cannon Light Cannon Katana [Rating: 9] Favorites ----------- Power Ion Engine Engine Ion Engine Propulsion Light Treads Treads Light Treads Wheel Wheel Utility Propulsion Shielding Storage Small Storage Unit Processor 0b10 Alert Chip Protection Propulsion Shielding Weapon Assault Rifle Energy Gun Medium Laser Energy Cannon Beam Cannon Ballistic Gun Assault Rifle Launcher Grenade Launcher Build | -11 -10 -10 -10 -9 ------- Run | Jun Mat Min Exi Min Slots Evolved . | . . . . . Power . | . . . . . Propulsion . | . . . . . Utility . | . . . . . Weapon . | . . . . . Parts Attached 18 | 6 1 . 1 10 Power 3 | 1 . . . 2 Engine 3 | 1 . . . 2 Core . | . . . . . Reactor . | . . . . . Propulsion 4 | 2 . . . 2 Treads 2 | 2 . . . . Leg . | . . . . . Wheel 2 | . . . . 2 Hover . | . . . . . Flight . | . . . . . Utility 5 | 1 1 . 1 2 Device . | . . . . . Storage 2 | 1 . . 1 . Processor 1 | . . . . 1 Hackware . | . . . . . Protection 2 | . 1 . . 1 Artifact . | . . . . . Weapon 6 | 2 . . . 4 Energy Gun 2 | 1 . . . 1 Energy Cannon 1 | . . . . 1 Ballistic Gun 2 | 1 . . . 1 Ballistic Cannon . | . . . . . Launcher 1 | . . . . 1 Special Weapon . | . . . . . Impact Weapon . | . . . . . Slashing Weapon . | . . . . . Piercing Weapon . | . . . . . Special Melee Weapon . | . . . . . Unidentified Prototypes . | . . . . . Parts Lost 11 | . . . . 11 Power 3 | . . . . 3 Propulsion 4 | . . . . 4 Utility 2 | . . . . 2 Weapon 2 | . . . . 2 Highest Loss Streak 8 | . . . . 8 To Critical Strikes . | . . . . . Average Slot Usage (%) 97 | . 93 100 100 96 Engine 13 | . 14 14 14 13 Treads 26 | . 28 28 28 23 Storage 14 | . 14 14 14 14 Protection 13 | . 7 14 14 13 Energy Gun 12 | . 14 14 14 9 Ballistic Gun 13 | . 14 14 14 13 Launcher 1 | . . . . 4 Naked Turns . | . . . . . Heaviest Build 51 | 14 15 15 50 51 Greatest Support 40 | 40 40 40 40 40 Greatest Overweight (x) 5 | . . . 1 5 Average Overweight (x) . | . . . . 1 Largest Inventory Capacity 20 | 8 8 8 20 20 Average Capacity 13 | 6 8 8 16 20 Most Carried 9 | 2 3 7 8 9 Average Carried 6 | 1 2 5 7 8 Final Capacity 20 | 8 8 8 20 20 Final Carried 8 | 2 3 7 8 5 Class Distribution -------------------- 100% | Mutant Dominant Class ---------------- Mutant | -10/Materials Mutant | -10/Mines Mutant | -10/Exiles Mutant | -9/Mines Resources | -11 -10 -10 -10 -9 ----------- Run | Jun Mat Min Exi Min Matter Collected 551 | 186 135 137 . 93 Remotely . | . . . . . Salvage Created 354 | . 139 98 . 117 Parts 19 | . 3 3 . 13 Haulers Intercepted 1 | . 1 . . . Recyclers Shooed . | . . . . . Parts Field Recycled . | . . . . . Retrieved Matter . | . . . . . Parts Self-Destructed . | . . . . . Prevented . | . . . . . Kills | -11 -10 -10 -10 -9 ------- Run | Jun Mat Min Exi Min Combat Hostiles Destroyed 13 | . 2 2 . 9 Guns 6 | . 2 2 . 2 Cannons 2 | . . . . 2 AOE 5 | . . . . 5 Classes Destroyed 6 | . 2 . . 4 Tunneler 1 | . . . . 1 Hauler 1 | . 1 . . . Swarmer 4 | . . . . 4 Grunt 5 | . 2 2 . 1 Duelist 1 | . . . . 1 Assembled 3 | . . . . 3 Best Kill Streak 5 | . 2 2 . 5 Combat Bots Only 4 | . 2 2 . 4 Max Kills in Single Turn 1 | . 1 1 . 1 Gunslinging . | . . . . . Exploded 1 | . . . . 1 Melee . | . . . . . Uniques/NPCs Destroyed . | . . . . . Combat | -11 -10 -10 -10 -9 -------- Run | Jun Mat Min Exi Min Damage Taken 1121 | . 180 152 . 789 Core 251 | . 41 43 . 167 Absorbed by Shields . | . . . . . Redirected to Shielding 63 | . . 28 . 35 Core Remaining (%) 100 | 100 . . . . Volleys Fired 47 | . 17 8 . 22 Largest 2 | . 2 2 . 2 Hottest 110 | . 70 70 . 110 Shots Fired 84 | . 34 16 . 34 Gun 72 | . 34 16 . 22 Cannon 2 | . . . . 2 Launcher 10 | . . . . 10 Special . | . . . . . Kinetic 35 | . 17 8 . 10 Thermal 39 | . 17 8 . 14 Explosive 10 | . . . . 10 Electromagnetic . | . . . . . Robot Hit Streak 10 | . 6 4 . 10 Robot Miss Streak 5 | . 4 5 . 2 Penetration Max . | . . . . . Secondary Targets 1 | . 1 . . . Max Gunslinging Chain 1 | . 1 . . . Shots Hit Robots 55 | . 21 10 . 24 Core Hits 26 | . 6 6 . 14 Critical Kills . | . . . . . Critical Parts Destroyed . | . . . . . Critical Strikes 2 | . . 1 . 1 Burn 2 | . . 1 . 1 Melee Attacks . | . . . . . Impact . | . . . . . Slashing . | . . . . . Piercing . | . . . . . Sneak Attacks . | . . . . . Combat Hostiles . | . . . . . Follow-up Attacks . | . . . . . Damage Inflicted 1215 | . 273 136 . 806 Guns 621 | . 273 128 . 220 Cannons 34 | . . . . 34 Explosions 550 | . . . . 550 Melee . | . . . . . Ramming 10 | . . 8 . 2 Kinetic 283 | . 123 53 . 107 Thermal 372 | . 150 75 . 147 Explosive 550 | . . . . 550 Electromagnetic . | . . . . . Impact . | . . . . . Slashing . | . . . . . Piercing . | . . . . . Highest Corruption 14 | . . . . 14 Average Corruption 10 | . . . . 10 Corruption Purged . | . . . . . Corruption Blocked . | . . . . . Overload Shots . | . . . . . Overflow Damage 28 | . . . . 28 Projectiles 7 | . . . . 7 Explosions 21 | . . . . 21 Melee . | . . . . . Knockbacks . | . . . . . Impact . | . . . . . Kinetic . | . . . . . Secondary . | . . . . . Self-Inflicted Damage 139 | . . . . 139 Shots 5 | . . . . 5 Rammed 4 | . . 3 . 1 Targets Rammed 4 | . . 3 . 1 Kicked . | . . . . . Crushed . | . . . . . Highest Temperature 228 | . 228 159 . 44 Average Temperature 77 | . 105 85 . 21 Received Heat Transfer 225 | . 102 87 . 36 Siege Activations . | . . . . . Robots Corrupted . | . . . . . Combat Hostiles . | . . . . . Parts Fried . | . . . . . Impact Corruptions . | . . . . . Robots Melted . | . . . . . Combat Hostiles . | . . . . . Parts Melted 3 | . . 2 . 1 Heat Transferred 1221 | . 444 296 . 481 Parts Sabotaged . | . . . . . Parts Stolen . | . . . . . Parts Stripped . | . . . . . Power Chain Reactions . | . . . . . Missiles Intercepted . | . . . . . Alert | -11 -10 -10 -10 -9 ------- Run | Jun Mat Min Exi Min Peak Influence 133 | . 63 74 . 133 Initial 24 | . . 24 . . Average 24 | . 34 23 . 22 Maximum Alert Level . | . . . . . Low Security (%) 100 | 100 100 100 . 100 Level 1 . | . . . . . Level 2 . | . . . . . Level 3 . | . . . . . Level 4 . | . . . . . Level 5 . | . . . . . High Security . | . . . . . Max Security . | . . . . . Squads Dispatched . | . . . . . Investigation . | . . . . . Extermination . | . . . . . Reinforcement . | . . . . . Assault . | . . . . . Garrison . | . . . . . Intercept . | . . . . . Searches Triggered . | . . . . . Construction Impeded . | . . . . . Haulers Reinforced . | . . . . . Active Scanning Responses . | . . . . . Cargo Convoy Interrupts . | . . . . . Stealth | -11 -10 -10 -10 -9 --------- Run | Jun Mat Min Exi Min Distress Signals . | . . . . . Communications Jammed . | . . . . . Distress Signals . | . . . . . Times Spotted 15 | . 3 2 . 10 Peak Tracking Total 4 | . 3 2 . 4 Tactical Retreats . | . . . . . Traps | -11 -10 -10 -10 -9 ------- Run | Jun Mat Min Exi Min Traps Triggered . | . . . . . Indirectly . | . . . . . Trap Hack Attempts . | . . . . . Triggered . | . . . . . Disarmed . | . . . . . Reprogrammed . | . . . . . Reused . | . . . . . Traps Extracted . | . . . . . Installed . | . . . . . Triggered . | . . . . . Machines | -11 -10 -10 -10 -9 ---------- Run | Jun Mat Min Exi Min Machines Disabled 2 | . . . . 2 Max in Single Turn 2 | . . . . 2 Machines Repaired . | . . . . . Machines Sabotaged . | . . . . . Overloaded Fab Kills . | . . . . . Hacking | -11 -10 -10 -10 -9 --------- Run | Jun Mat Min Exi Min Machines Accessed 3 | . 1 . 2 . Terminals 1 | . 1 . . . Fabricators . | . . . . . Repair Stations . | . . . . . Recycling Units . | . . . . . Scanalyzers . | . . . . . Garrison Access . | . . . . . Total Hacks 3 | . 1 . 2 . Successful 2 | . . . 2 . Failed 1 | . 1 . . . Catastrophic 1 | . 1 . . . Database Lockouts . | . . . . . Manual 2 | . 1 . 1 . Terminals 1 | . 1 . . . Fabricators . | . . . . . Repair Stations . | . . . . . Recycling Units . | . . . . . Scanalyzers . | . . . . . Garrison Access . | . . . . . Terminal Hacks 2 | . . . 2 . Record 1 | . . . 1 . Derelict Proto ID Bank 1 | . . . 1 . Fabricator Hacks . | . . . . . Repair Station Hacks . | . . . . . Recycling Unit Hacks . | . . . . . Scanalyzer . | . . . . . Garrison Access Hacks . | . . . . . Unauthorized Hacks . | . . . . . Terminals . | . . . . . Fabricators . | . . . . . Repair Stations . | . . . . . Recycling Units . | . . . . . Scanalyzers . | . . . . . Garrison Access . | . . . . . Data Cores Recovered . | . . . . . Used . | . . . . . Hacking Detections 1 | . 1 . . . Full Trace Events . | . . . . . Feedback Events . | . . . . . Feedback Blocked . | . . . . . Robot Schematics Acquired . | . . . . . Robots Built . | . . . . . Authchips . | . . . . . Time . | . . . . . Total Robot Build Rating . | . . . . . Part Schematics Acquired . | . . . . . Parts Built . | . . . . . Authchips . | . . . . . Time . | . . . . . Total Part Build Rating . | . . . . . Parts Repaired . | . . . . . Time . | . . . . . Parts Recycled . | . . . . . Recycled Matter . | . . . . . Retrieved Matter . | . . . . . Retrieved Components . | . . . . . Parts Scanalyzed . | . . . . . Part Schematics Acquired . | . . . . . Parts Damaged . | . . . . . Bothacking | -11 -10 -10 -10 -9 ------------ Run | Jun Mat Min Exi Min Used RIF Installer . | . . . . . Robots Hacked . | . . . . . Non-combat . | . . . . . Combat . | . . . . . Robot Hacks Applied . | . . . . . Relay Couplers Released . | . . . . . Fabnet Peak Effective % . | . . . . . Robots Rewired . | . . . . . Allies Hacked . | . . . . . Hacks Repelled . | . . . . . Allies | -11 -10 -10 -10 -9 -------- Run | Jun Mat Min Exi Min Total Allies . | . . . . . Largest Group . | . . . . . Highest-Rated Group . | . . . . . Highest-Rated Ally . | . . . . . Total Orders . | . . . . . Ally Attacks . | . . . . . Total Damage . | . . . . . Kills . | . . . . . Allies Corrupted . | . . . . . Allies Melted . | . . . . . Intel | -11 -10 -10 -10 -9 ------- Run | Jun Mat Min Exi Min Robot Analysis Total . | . . . . . Derelict Logs Recovered 2 | . . 1 . 1 Drone Launches . | . . . . . Drone Recoveries . | . . . . . Exploration | -11 -10 -10 -10 -9 ------------- Run | Jun Mat Min Exi Min Turns Passed 2948 | 66 372 855 696 959 Spaces Moved 1454 | 37 196 509 336 376 Core 3 | 3 . . . . Treads 1364 | 34 196 509 336 289 Legs . | . . . . . Wheels 87 | . . . . 87 Hover . | . . . . . Flight . | . . . . . Fastest Speed 50 | 50 160 160 160 140 Average Speed 187 | 151 160 160 206 226 Slowest Speed 320 | 160 160 160 240 320 Overloaded Moves . | . . . . . Propulsion Burnouts . | . . . . . Robots Hopped . | . . . . . Cave-ins Triggered . | . . . . . Exploration Rate (%) 58 | 4 34 98 69 85 Regions Visited 4 Branch Regions 3 Pre-discovered Areas 1 | . . . 1 . Known Exits Taken . | . . . . . Unknown Exits Taken 4 | 1 1 1 1 . Scrap Searched 3 | . . 2 . 1 Spaces Dug . | . . . . . Terrain Destroyed 51 | . . . . 51 Melee . | . . . . . Projectile . | . . . . . AOE 51 | . . . . 51 Terrain Rammed . | . . . . . Walls Destroyed . | . . . . . Machines Disabled . | . . . . . Actions | -11 -10 -10 -10 -9 --------- Run | Jun Mat Min Exi Min Total 1580 | 44 220 532 338 446 Wait 50 | . 6 9 . 35 Move 1450 | 36 195 508 335 376 Hop . | . . . . . Pick Up 10 | 2 1 4 1 2 Fast Attach 11 | 6 1 . . 4 Attach 5 | . . . . 5 Detach . | . . . . . Swap 2 | . . . 1 1 Drop 1 | . . . 1 . Fire 47 | . 17 8 . 22 Melee . | . . . . . Ram . | . . . . . Kick . | . . . . . Crush 4 | . . 3 . 1 Escape Stasis . | . . . . . Rewire . | . . . . . Trap . | . . . . . Miscellaneous . | . . . . . Route ------- -11/Junkyard -10/Materials -10/Mines (discovered 4 exits: [*Mat x2] / *Exi / [*Sub]) -10/Exiles -9/Mines (discovered 2 exits: [*Mat x2]) History --------- Turn | Location | Event 9 | -11/Junkyard | Discovered new exit (range 15) 67 | -11/Junkyard | Entered Materials 281 | -10/Materials | Discovered new exit (range 16) 316 | -10/Materials | Build established: Mutant 439 | -10/Materials | Entered Mines 467 | -10/Mines | Learned Materials stockpile data 687 | -10/Mines | Discovered new exit (range 14) 1030 | -10/Mines | Discovered new exit (range 11) 1196 | -10/Mines | Discovered new exit (range 6) 1288 | -10/Mines | Deemed a non-threat by the Exiles lab entrance 1288 | -10/Mines | Discovered new exit (range 5) 1294 | -10/Mines | Entered Exiles 1333 | -10/Exiles | Met 8R-AWN 1357 | -10/Exiles | Met EX-HEX 1440 | -10/Exiles | Met EX-DEC 1469 | -10/Exiles | Learned location of Zion (-6) 1646 | -10/Exiles | Met EX-BIN 1680 | -10/Exiles | Aligned with FarCom system 1682 | -10/Exiles | Given EX-Vault access code 1737 | -10/Exiles | Opened EX-Vault 1754 | -10/Exiles | Found 0b10 Alert Chip 1813 | -10/Exiles | Warned to stay clear of 0b10 Research branches 1835 | -10/Exiles | Exiles lab attacked by MAIN.C 1964 | -10/Exiles | Discovered new exit (range 14) 1990 | -10/Exiles | Left Exiles lab with 0b10 Alert Chip 1990 | -10/Exiles | Entered Mines 2008 | -9/Mines | Met a Derelict bent on vengeance 2287 | -9/Mines | Core integrity fell below 50% 2363 | -9/Mines | Discovered new exit (range 5) 2539 | -9/Mines | Discovered new exit (range 11) 2555 | -9/Mines | Learned location of 1 exit from Materials 2807 | -9/Mines | Assembled infested the area 2942 | -9/Mines | Core integrity fell below 20% 2942 | -9/Mines | System corruption reached 10% 2949 | -9/Mines | Destroyed by as-03914 with Assembled Heavy Rifle Last Messages --------------- 02919_ Destroyed Ion Engine. 02934_ Assault Rifle destroyed. 02934_ Destroyed Assault Rifle. 02936_ Lgt. Treads destroyed. 02936_ Destroyed Lgt. Treads. 02937_ Grenade Launcher destroyed. 02937_ System corrupted by crushing effect (+4). 02939_ Acquired Ion Engine. 02941_ Wheel destroyed. 02941_ Core Shielding destroyed. 02941_ System corrupted by crushing effect (+5). 02941_ System corrupted by crushing effect (+1). 02941_ Knocked back. 02943_ Wheel destroyed. 02943_ System corrupted by crushing effect (+4). 02943_ Knocked back. 02944_ Ion Engine destroyed. 02945_ as-47200 destroyed. 02948_ Destroyed Asb. Hover Unit. 02948_ as-74390 destroyed. Map ----- +----------------------------------------------------+ | # ##???# ##???### ##### ###?#### | | ! ##??## #?????## ### #???# ##???? | | # ##?## #??????#### ## ##?# #??## ##### | | ?# #### #?????????# ### #??# #??# ##!= | | ??# #????????? #?# #??# #### ##%" | | ???# *= ##???????####?# #??# % ###=" | | ???# !%! ##???????????# #??#######* ###%" | | ??## = ####??#?????# #????????## = | | ### ## ####### #?????????## " | | ## #??????????### ## " | | #### ?? ?????????????# ## " | | ##??# ######???##?????????????# ## | | ##???# ## ##??????????????????????# #### | | ##???# ## #????????#####??######## #??? | | #???# ## #??????## ### % % #??? | | #???# ### #?????? ## ####### #??? | | # #???# ##?# #?????? ==/ ??????# #??? | | # ##???# ##??# #????## a%*????????# #??? | | #????# ##???## ##??## a#?????????# #??? | | ##??# ##?????# ##### #?????????# #??? | | #? ##??????# #?????????# #??? | | ????????# ! #??????????# #??? | | %????????## %= #??????????# #??? | | ?# ####### *= #??????????# #??? | | %%%= ##??????????# #??? | | # % @=[! #???????????# #??? | | ###### # # # ############ #### | | ??????# ?### ### # | | ??????? # ????# #??# | | ???????? ## ??????# #???### ########### | | ????????# ????????? ???????###????????## | | ?????????# ??????????? ????????????????### | | ??????????????????????? ???????????????## | | ??????????????????????? ?????????????### | | ???????????????????????#????????????## | | ????????????????????????????????????# | | ????????????????????????????????????# ##### | | ???????????????????????????????????## ##???### | | ????????????????????????????????#### ##??????# | | ????????????????????????????????# #???????# | | ???????????????????????????????# ##??????## | | ???????????????????????????????## #####??????## | | ????????????????????????????????####??????????## | | ??????????????????????????????????????????##### | | ?????????????????????????????????????????## | | ????????????????????????????????????????## | | ?????????????????????????????????????#### | | ????????????????????????????????????## ### | | ????????????????????????????????????# ##?# | | ????????????????????????????????????# ##??? | +----------------------------------------------------+ Best States ------------- Heat Dissipation 25 Energy Generation 10 Energy Capacity 250 Matter Stores 300 Matter Capacity 300 Sight Range 16 Terrain Scan Density 10 Core Shielding 20 Propulsion Shielding 33 Evasion (%) 40 Recoil Reduction 2 Item Schematics ----------------- None Robot Schematics ------------------ None Fabricated ------------ Nothing Alien Tech Used ----------------- None Achievements -------------- None Challenges ------------ None Game ------ Seed MassClaymoresRigger Manual? 0 Play Time 00:11:12 Cumulative 440.5 hours Start 2023.09.24 @ 11:17:15 End 2023.09.24 @ 11:25:56 Sessions 1 Manual Loads 0 Difficulty Rogue Special Mode None Game No. 512 Rogue 425 Adventurer 87 Explorer 0 Win Type - Total 24 Types 8/0/13/1/1/0/1/0/0 Lore% 86 Gallery% 91 Achievement% 75 Wizard Run 0 Options --------- ASCII 0 Keyboard 1 Movement Numpad Keybinds 0 Fullscreen 1 Font 18/SmallcapsGlow Map View 76x50 Tactical HUD 1 Map Filters NONE Filters NONE Steam 1 RUN: f5be2038-5d10-4853-90ec-ac9dd3dedebb